bitfinex/quotes_ETHUSD_20241030
["timestamp","ask_amount","ask_price","bid_price","bid_amount"]
[1730277082561,3.74169,2672.6,2672.3,0.7627]
[1730277082763,3.74184,2672.5,2672.3,0.7627]
[1730277082967,3.74162,2672.7,2672.3,0.7627]
[1730277083267,3.74175,2672.6,2672.3,0.7627]
[1730277085559,3.74191,2672.5,2672.3,0.7627]
[1730277085961,3.74195,2672.4,2672.3,0.7627]
[1730277086158,3.74195,2672.4,2672.0,0.8315]
[1730277086476,3.74203,2672.4,2672.0,0.8315]
[1730277087137,3.74191,2672.5,2672.1,0.07483673]
[1730277087336,7.48384,2672.5,2672.1,0.5397284]
[1730277087559,7.48384,2672.5,2672.1,0.46489167]
[1730277087757,3.74161,2672.7,2672.2,0.8022]
[1730277087974,3.74141,2672.8,2672.3,3.74208]
[1730277088138,3.74141,2672.8,2672.5,0.8022]
[1730277088536,8.69134,2672.9,2672.5,0.8022]
[1730277088537,8.69126,2672.9,2672.5,0.8022]
[1730277088959,3.74142,2672.8,2672.5,0.8022]
[1730277089160,8.69126,2672.9,2672.5,0.8022]
[1730277089358,4.95,2672.9,2672.5,3.74174]
[1730277089583,4.95,2672.9,2672.6,1.2348168]
[1730277089799,4.95,2672.9,2672.6,0.8152]
[1730277090360,3.74112,2673.0,2672.6,0.8152]
[1730277090763,3.74126,2672.9,2672.6,0.8152]
[1730277091796,3.7415,2672.8,2672.7,0.3745]
[1730277091997,3.7415,2672.8,2672.6,0.8152]
[1730277092295,3.74153,2672.7,2672.6,0.8152]
[1730277092670,3.74153,2672.7,2672.3,0.751]
[1730277092997,3.74171,2672.6,2672.4,0.449322]
[1730277093180,3.74181,2672.5,2672.3,0.751]
[1730277093509,3.74205,2672.4,2672.0,0.751]
[1730277093801,7.48411,2672.4,2672.0,0.751]
[1730277094375,3.74205,2672.4,2672.0,0.751]
[1730277095605,3.74204,2672.4,2672.0,0.751]
[1730277097407,3.74204,2672.4,2672.0,1.52501441]
[1730277098914,3.74204,2672.4,2672.1,0.07483761]
[1730277099319,3.74191,2672.5,2672.1,0.07483761]
[1730277099621,3.74181,2672.5,2672.1,0.07483761]
[1730277102636,3.74177,2672.6,2672.1,0.07483761]
[1730277102927,3.74197,2672.4,2672.1,0.07483761]
[1730277103135,3.74197,2672.4,2672.0,1.52501441]
[1730277103626,3.74197,2672.4,2672.1,0.52675744]
[1730277103791,3.74197,2672.4,2672.0,1.52501441]
[1730277104688,3.74197,2672.4,2672.1,0.07483776]
[1730277105432,3.74197,2672.4,2672.0,1.52501441]
[1730277107505,3.74188,2672.5,2672.1,0.07483783]
[1730277108937,3.74196,2672.4,2672.1,0.07483783]
[1730277110208,2.89967553,2672.4,2672.1,0.07483783]
[1730277110409,3.74173,2672.6,2672.1,0.07483783]
[1730277110410,3.74182,2672.5,2672.1,0.07483783]
[1730277110639,3.74182,2672.5,2672.1,1.52698087]
[1730277112002,3.74197,2672.4,2672.0,1.52501441]
[1730277112198,3.74209,2672.3,2672.0,0.751]
[1730277112596,3.74197,2672.4,2672.0,0.751]
[1730277117326,3.74218,2672.3,2672.0,0.751]
[1730277117712,3.74231,2672.2,2671.9,1.45214304]
[1730277117927,3.74231,2672.2,2671.7,1.45214304]
[1730277117928,3.74253,2672.0,2671.7,1.45214304]
[1730277118440,3.74265,2671.9,2671.7,1.45214304]
[1730277118657,3.74265,2671.9,2671.6,0.7957]
[1730277118811,3.74253,2672.0,2671.6,0.7957]
[1730277119603,7.48512,2672.0,2671.6,0.7957]
[1730277119808,3.74253,2672.0,2671.6,1.40041275]
[1730277120120,3.74238,2672.1,2671.7,1.45214304]
[1730277121147,0.7933,2672.2,2671.7,3.74283]
[1730277121308,4.5631,2672.5,2672.1,1.45214304]
[1730277121509,4.19821,2672.5,2672.1,1.45214304]
[1730277121747,3.74176,2672.6,2672.1,5.19444304]
[1730277122531,3.74183,2672.5,2672.1,5.19444304]
[1730277122730,3.74183,2672.5,2672.1,1.45214304]
[1730277122912,3.74203,2672.4,2672.1,1.45214304]
[1730277123252,3.74183,2672.5,2672.1,1.45214304]
[1730277123564,3.74183,2672.5,2672.1,2.42622234]
[1730277123565,3.74203,2672.4,2672.1,2.42622234]
[1730277124353,3.74167,2672.6,2672.1,2.42622234]
[1730277125245,7.48347,2672.6,2672.1,2.42622234]
[1730277125452,3.74167,2672.6,2672.1,2.42622234]
[1730277125615,3.74182,2672.5,2672.1,2.42622234]
[1730277125815,3.74182,2672.5,2672.2,0.69724223]
[1730277128641,3.74188,2672.5,2672.2,0.69724223]
[1730277128866,3.74204,2672.4,2672.2,0.69724223]
[1730277129055,2.89975701,2672.4,2672.1,2.42622234]
[1730277129257,6.64180701,2672.4,2672.1,2.42622234]
[1730277129458,2.89975701,2672.4,2672.1,2.42622234]
[1730277130370,2.89975701,2672.4,2671.7,2.24534304]
[1730277130371,3.74236,2672.2,2671.7,2.24534304]
[1730277130872,3.74241,2672.1,2671.9,1.45214304]
[1730277134261,3.74209,2672.3,2671.9,1.45214304]
[1730277134468,3.74226,2672.2,2671.9,1.45214304]
[1730277135778,3.74226,2672.2,2671.9,2.05845198]
[1730277137251,0.8113,2672.4,2671.9,2.05845198]
[1730277137541,3.74181,2672.5,2672.1,1.45214304]
[1730277138483,3.74198,2672.4,2672.1,1.45214304]
[1730277138653,7.48403,2672.4,2672.0,0.8329]
[1730277138856,7.48403,2672.4,2672.0,1.4962922]
[1730277139172,3.74198,2672.4,2672.0,1.4962922]
[1730277139378,3.7421,2672.3,2672.0,1.4962922]
[1730277139580,3.74198,2672.4,2672.0,1.4962922]
[1730277141687,3.74167,2672.6,2672.0,0.6633922]
[1730277141849,0.8153,2672.3,2671.9,5.19470304]
[1730277142044,0.8153,2672.3,2671.9,1.45214304]
[1730277142662,3.74239,2672.1,2671.8,0.7755]
[1730277142861,3.74251,2672.0,2671.7,1.45214304]
[1730277143067,3.74251,2672.0,2671.7,1.73959306]
[1730277143945,2.90032674,2671.9,2671.5,0.05614441]
[1730277144274,3.74287,2671.8,2671.5,0.05614441]
[1730277144441,3.74287,2671.8,2671.6,1.45214304]
[1730277145269,7.40850674,2671.9,2671.6,1.45214304]
[1730277145562,3.7428,2671.8,2671.6,1.45214304]
[1730277145763,3.66572674,2671.9,2671.6,1.45214304]
[1730277145963,2.90032674,2671.9,2671.6,1.45214304]
[1730277146486,3.74243,2672.1,2671.5,3.79930441]
[1730277146671,3.74217,2672.3,2672.0,1.45214304]
[1730277147010,3.74231,2672.2,2672.0,1.45214304]
[1730277152599,3.74231,2672.2,2671.8,5.19491304]
[1730277152897,3.74231,2672.2,2671.9,0.5976713]
[1730277153994,3.74237,2672.1,2671.9,0.5976713]
[1730277154198,3.74231,2672.2,2671.8,1.45214304]
[1730277156510,3.74216,2672.3,2671.9,0.7936]
[1730277157364,3.74231,2672.2,2671.9,0.7936]
[1730277158809,3.74195,2672.4,2671.9,0.7936]
[1730277159329,3.7423,2672.2,2671.9,0.7936]
[1730277159468,3.7423,2672.2,2671.9,1.6924583]
[1730277159890,7.48463,2672.2,2671.9,1.6924583]
[1730277160200,3.7423,2672.2,2671.9,0.8988583]
[1730277160879,7.48413,2672.4,2671.9,0.8988583]
[1730277161567,3.74212,2672.3,2671.9,0.8988583]
[1730277164288,3.74212,2672.3,2671.9,4.6414883]
[1730277164487,3.74212,2672.3,2672.0,0.60936313]
[1730277165705,3.74224,2672.2,2671.9,0.8988583]
[1730277166211,3.74212,2672.3,2671.9,0.8988583]
[1730277166635,3.74212,2672.3,2671.8,5.19491304]
[1730277167989,3.74223,2672.2,2671.8,1.45214304]
[1730277168189,3.74212,2672.3,2671.8,5.19493304]
[1730277169903,3.74226,2672.2,2671.8,1.45214304]
[1730277170404,7.48462,2672.2,2671.8,1.45214304]
[1730277170597,0.7855,2672.5,2671.7,4.54602]
[1730277170598,3.74246,2672.1,2671.7,0.8032]
[1730277170818,0.374246,2672.0,2671.7,0.8032]
[1730277171018,3.74246,2672.1,2671.7,0.8032]
[1730277171221,3.74251,2672.0,2671.7,0.8032]
[1730277173038,3.74246,2672.1,2671.7,0.8032]
[1730277173533,3.74253,2672.0,2671.7,0.8032]
[1730277175073,3.74241,2672.1,2671.7,0.8032]
[1730277177446,3.7421,2672.3,2671.8,1.45214304]
[1730277177612,3.7421,2672.3,2671.8,5.19490304]
[1730277180430,3.7421,2672.3,2671.8,1.45214304]
[1730277180752,3.7421,2672.3,2671.8,5.19483304]
[1730277180939,3.7421,2672.3,2671.9,0.5998033]
[1730277181324,3.74205,2672.4,2672.0,0.7509]
[1730277182939,7.48412,2672.4,2672.0,0.7509]
[1730277183551,3.74205,2672.4,2672.0,0.7509]
[1730277183729,7.48409,2672.4,2672.0,0.7509]
[1730277183917,3.74204,2672.4,2672.0,0.7509]
[1730277189436,3.74219,2672.3,2672.0,0.7509]
[1730277190051,3.74181,2672.5,2672.0,0.7509]
[1730277190277,3.74177,2672.6,2672.0,0.7509]
[1730277190581,3.74199,2672.4,2672.0,0.7509]
[1730277192049,3.74181,2672.5,2672.0,0.7509]
[1730277192274,7.48376,2672.5,2672.0,4.49339]
[1730277192475,3.74188,2672.5,2672.0,4.49339]
[1730277193967,3.74188,2672.5,2672.0,5.94553304]
[1730277196080,3.74196,2672.4,2672.0,2.20304304]
[1730277196278,3.74177,2672.6,2672.0,5.94552304]
[1730277196444,3.74181,2672.5,2672.0,4.49338]
[1730277198846,7.48354,2672.6,2672.0,8.23579]
[1730277199189,3.7419,2672.5,2672.0,9.68788304]
[1730277199479,3.7419,2672.5,2672.0,5.94545304]
[1730277200467,4.95,2673.0,2672.4,1.45214304]
[1730277200692,0.59557854,2673.5,2672.6,2.23874304]
[1730277200693,0.8,2673.2,2672.6,2.23874304]
[1730277200846,3.74118,2673.0,2672.6,0.7866]
[1730277201458,7.48239,2673.0,2672.6,0.7866]
[1730277201663,3.74153,2672.7,2672.3,0.7866]
[1730277202064,3.74184,2672.5,2672.3,0.7866]
[1730277202291,3.74184,2672.5,2671.8,3.74275]
[1730277202292,3.74204,2672.4,2672.1,0.8127]
[1730277202467,1.532594,2672.7,2672.1,0.8127]
[1730277202665,7.48414,2672.4,2672.1,0.8127]
[1730277203077,3.74207,2672.4,2672.1,0.8127]
[1730277203681,0.7843,2672.7,2671.8,4.45214304]
[1730277203682,3.74223,2672.2,2671.8,4.45214304]
[1730277203881,3.74261,2672.0,2671.8,0.831]
[1730277204082,3.74249,2672.1,2671.4,0.831]
[1730277204299,7.48605,2671.7,2671.4,0.831]
[1730277204588,3.74302,2671.7,2671.4,0.831]
[1730277205157,7.48604,2671.7,2671.4,0.831]
[1730277205362,3.7431,2671.6,2671.4,0.831]
[1730277206363,3.7431,2671.6,2671.3,0.05483626]
[1730277207498,3.74302,2671.7,2671.3,0.05483626]
[1730277207684,7.48605,2671.7,2671.3,0.05483626]
[1730277208795,3.74302,2671.7,2671.3,0.05483626]
[1730277209004,7.48605,2671.7,2671.3,0.05483626]
[1730277209187,3.74315,2671.6,2671.3,0.05483626]
[1730277210972,3.74323,2671.5,2671.3,0.05483626]
[1730277211691,7.48608,2671.7,2671.3,0.05483626]
[1730277211866,3.74302,2671.7,2671.3,0.05483626]
[1730277212062,3.7431,2671.6,2671.3,0.05483626]
[1730277212899,0.748612,2671.6,2671.3,0.05483626]
[1730277213107,3.74335,2671.4,2671.3,0.05483626]
[1730277215110,4.55025,2671.4,2671.3,0.05483626]
[1730277215589,3.74379,2671.1,2670.7,1.45214304]
[1730277216711,3.74415,2670.9,2670.7,1.45214304]
[1730277217812,3.74387,2671.1,2670.7,1.45214304]
[1730277218115,0.8069,2671.4,2670.7,1.45214304]
[1730277218420,3.74419,2670.8,2670.6,2.28524304]
[1730277219192,3.74417,2670.9,2670.6,2.28524304]
[1730277219527,3.74419,2670.8,2670.6,2.28524304]
[1730277219813,3.74419,2670.8,2670.6,1.45214304]
[1730277221977,3.74417,2670.9,2670.6,1.45214304]
[1730277222611,3.74393,2671.0,2670.6,2.42568334]
[1730277222775,3.74357,2671.3,2670.8,2.23974304]
[1730277223283,3.74378,2671.1,2670.8,2.23974304]
[1730277223483,3.74366,2671.2,2670.8,2.23974304]
[1730277223704,3.74364,2671.2,2670.8,5.98393304]
[1730277223912,3.74357,2671.3,2670.8,7.05412037]
[1730277225006,3.74364,2671.2,2670.8,3.30993037]
[1730277225615,0.7841,2671.8,2671.1,0.7744]
[1730277225817,3.74329,2671.5,2671.1,0.7744]
[1730277226121,3.74356,2671.3,2671.1,0.7744]
[1730277226689,3.74391,2671.0,2670.9,0.7984]
[1730277226884,3.74433,2670.7,2670.5,1.45214304]
[1730277227800,3.74433,2670.7,2670.4,0.7984]
[1730277227998,3.74458,2670.6,2670.2,0.80944986]
[1730277228282,0.8006,2670.9,2670.3,1.45214304]
[1730277228283,3.74428,2670.8,2670.3,1.45214304]
[1730277228483,3.74434,2670.7,2670.3,1.45214304]
[1730277228679,3.74434,2670.7,2670.5,1.45214304]
[1730277228912,4.54477,2670.9,2670.5,1.45214304]
[1730277229117,3.74417,2670.9,2670.5,1.45214304]
[1730277229526,3.74417,2670.9,2670.5,2.23374304]
[1730277230288,3.74417,2670.9,2670.5,2.81462017]
[1730277231116,3.74417,2670.9,2670.5,6.55922017]
[1730277231314,3.74417,2670.9,2670.5,2.81462017]
[1730277232322,7.48836,2670.9,2670.5,2.81462017]
[1730277232523,3.74417,2670.9,2670.5,2.81462017]
[1730277232929,3.74417,2670.9,2670.6,0.3744]
[1730277233143,3.74417,2670.9,2670.5,2.81462017]
[1730277233437,4.55269,2671.3,2670.7,1.45214304]
[1730277233636,3.74367,2671.2,2670.8,0.7699]
[1730277233933,7.48717,2671.3,2670.9,1.45214304]
[1730277234336,3.74358,2671.3,2670.9,1.45214304]
[1730277236835,7.48715,2671.3,2670.9,1.45214304]
[1730277237040,3.74357,2671.3,2670.9,1.45214304]
[1730277237241,3.74357,2671.3,2670.9,2.42318234]
[1730277238841,3.74357,2671.3,2670.9,6.16721234]
[1730277239475,3.74364,2671.2,2670.9,0.9710393]
[1730277239620,3.74399,2671.0,2670.8,0.7699]
[1730277239956,3.74399,2671.0,2670.6,0.7543]
[1730277240127,3.74399,2671.0,2670.6,2.20644304]
[1730277240355,3.74399,2671.0,2670.6,2.80153734]
[1730277240858,3.74377,2671.1,2670.6,2.80153734]
[1730277240859,3.74377,2671.1,2670.6,6.54598734]
[1730277241015,3.74356,2671.3,2670.8,1.45214304]
[1730277241365,3.74339,2671.4,2671.0,1.45214304]
[1730277241557,3.74335,2671.4,2671.0,2.05448434]
[1730277242028,3.74335,2671.4,2671.0,0.6023413]
[1730277242227,3.74321,2671.5,2671.0,0.6023413]
[1730277242464,3.74335,2671.4,2671.0,0.6023413]
[1730277243130,3.74354,2671.3,2671.0,0.6023413]
[1730277243829,7.48678,2671.4,2671.0,0.6023413]
[1730277244151,3.74335,2671.4,2670.9,4.57132]
[1730277244353,3.74349,2671.3,2670.9,4.57132]
[1730277244556,3.74349,2671.3,2670.9,0.8273]
[1730277244854,3.74335,2671.4,2670.9,0.8273]
[1730277245024,3.74335,2671.4,2670.9,4.57135]
[1730277245227,3.74335,2671.4,2670.9,5.55561517]
[1730277246254,3.74352,2671.3,2670.9,5.55561517]
[1730277246957,3.74317,2671.6,2671.0,4.53632]
[1730277247260,3.74317,2671.6,2671.1,3.74364]
[1730277247423,7.48579,2671.8,2671.3,4.53599]
[1730277247624,3.74294,2671.7,2671.3,4.53599]
[1730277248165,3.74294,2671.7,2671.3,0.7925]
[1730277248525,3.74288,2671.8,2671.3,4.53585]
[1730277248854,7.48575,2671.8,2671.3,5.5090173]
[1730277249023,7.48574,2671.8,2671.3,5.5090173]
[1730277249219,3.74287,2671.8,2671.3,5.5090173]
[1730277249624,0.8076,2671.9,2671.3,5.5090173]
[1730277249961,3.74261,2672.0,2671.3,5.5090173]
[1730277249962,3.74281,2671.8,2671.3,5.5090173]
[1730277250119,3.74281,2671.8,2671.4,0.69611603]
[1730277250433,7.48572,2671.8,2671.4,0.69611603]
[1730277250634,3.74281,2671.8,2671.4,0.69611603]
[1730277251827,7.48571,2671.8,2671.4,0.69611603]
[1730277252163,3.74281,2671.8,2671.4,0.69611603]
[1730277255773,3.74281,2671.8,2671.5,0.5231966]
[1730277255937,3.74281,2671.8,2671.3,4.53585]
[1730277256134,3.74294,2671.7,2671.3,0.7925]
[1730277256457,7.48637,2671.6,2671.3,0.7925]
[1730277256666,3.74322,2671.5,2671.3,0.7925]
[1730277257172,3.74322,2671.5,2671.1,4.52576]
[1730277257339,3.74322,2671.5,2671.1,0.782]
[1730277257720,3.74317,2671.6,2671.1,4.52575]
[1730277257842,3.74317,2671.6,2671.1,5.89636082]
[1730277260137,7.48637,2671.6,2671.1,5.89636082]
[1730277261047,3.74317,2671.6,2671.1,5.89636082]
[1730277263093,7.48634,2671.6,2671.1,5.89636082]
[1730277263748,3.74328,2671.5,2671.1,2.15261082]
[1730277263952,3.74321,2671.5,2671.1,2.15261082]
[1730277265889,3.74317,2671.6,2671.1,2.15261082]
[1730277266096,3.74307,2671.6,2671.1,0.782]
[1730277266293,3.74391,2671.0,2670.6,0.755]
[1730277267161,3.74407,2670.9,2670.6,0.755]
[1730277267487,3.74391,2671.0,2670.6,0.755]
[1730277268402,3.74407,2670.9,2670.6,0.755]
[1730277268559,7.48792,2671.0,2670.6,0.755]
[1730277268761,3.74391,2671.0,2670.6,0.755]
[1730277269372,3.74407,2670.9,2670.6,0.755]
[1730277269769,0.8104,2670.9,2670.3,0.7538]
[1730277269973,0.8104,2670.9,2670.3,4.95815211]
[1730277269974,3.74419,2670.8,2670.3,4.95815211]
[1730277270207,3.74419,2670.8,2670.4,1.45214304]
[1730277271801,3.7441,2670.9,2670.4,1.45214304]
[1730277272163,3.74394,2671.0,2670.5,0.8255]
[1730277272378,3.74394,2671.0,2670.6,1.45214304]
[1730277272737,3.74394,2671.0,2670.6,2.05436634]
[1730277274103,3.74394,2671.0,2670.6,0.6022233]
[1730277274262,3.74394,2671.0,2670.5,4.57004]
[1730277274778,0.7681,2671.3,2670.8,1.45214304]
[1730277274779,3.74365,2671.2,2670.8,1.45214304]
[1730277274990,3.74358,2671.3,2670.8,1.45214304]
[1730277275291,3.74358,2671.3,2670.8,5.19630304]
[1730277275486,3.74358,2671.3,2670.8,5.79458334]
[1730277275686,7.48716,2671.3,2670.8,5.79458334]
[1730277275892,3.74358,2671.3,2670.9,0.789]
[1730277276206,3.74358,2671.3,2670.9,4.53305]
[1730277276792,3.74358,2671.3,2670.9,0.789]
[1730277276992,3.74358,2671.3,2670.9,1.44735733]
[1730277277435,3.74391,2671.0,2670.9,0.789]
[1730277277725,3.74391,2671.0,2670.4,6.74465]
[1730277277726,3.74391,2671.0,2670.6,0.8154]
[1730277277906,3.74408,2670.9,2670.6,0.8154]
[1730277278106,7.48826,2670.9,2670.6,0.8154]
[1730277278320,3.74419,2670.8,2670.6,0.8154]
[1730277279224,3.74391,2671.0,2670.6,0.8154]
[1730277279617,3.74406,2670.9,2670.6,0.8154]
[1730277281928,3.74429,2670.8,2670.6,0.8154]
[1730277282125,3.74429,2670.8,2670.3,4.11925]
[1730277282126,3.74433,2670.7,2670.3,0.8122]
[1730277282331,3.74426,2670.8,2670.3,6.90758172]
[1730277282625,7.48822,2670.9,2670.4,3.74475]
[1730277282827,7.48822,2670.9,2670.5,1.45214304]
[1730277283392,3.74406,2670.9,2670.5,1.45214304]
[1730277284234,3.74406,2670.9,2670.6,0.8062]
[1730277285040,3.74386,2671.1,2670.6,0.8062]
[1730277285539,3.74408,2670.9,2670.6,0.8062]
[1730277285700,3.74386,2671.1,2670.6,0.8062]
[1730277285701,3.74386,2671.1,2670.6,1.4065013]
[1730277285897,3.74386,2671.1,2670.6,0.8062]
[1730277286249,3.7443,2670.8,2670.6,0.8062]
[1730277286542,3.74426,2670.8,2670.4,0.7525]
[1730277286901,7.48857,2670.8,2670.4,0.7525]
[1730277287101,3.74426,2670.8,2670.5,1.45214304]
[1730277287337,3.74426,2670.8,2670.5,2.13693021]
[1730277287540,3.744,2671.0,2670.5,2.13693021]
[1730277287706,3.74392,2671.0,2670.6,0.788]
[1730277290819,3.74414,2670.9,2670.6,0.788]
[1730277291854,7.4883,2670.9,2670.6,0.788]
[1730277292329,3.74414,2670.9,2670.6,0.788]
[1730277293341,7.4883,2670.9,2670.6,0.788]
[1730277293949,7.48828,2670.9,2670.6,0.788]
[1730277294420,3.74422,2670.8,2670.6,0.788]
[1730277295803,3.74417,2670.9,2670.6,0.788]
[1730277297414,3.74393,2671.0,2670.6,0.788]
[1730277297614,3.7442,2670.8,2670.6,0.788]
[1730277300217,3.74405,2670.9,2670.6,0.788]
[1730277300448,3.74393,2671.0,2670.6,0.788]
[1730277300623,7.48796,2671.0,2670.6,1.82942002]
[1730277300825,3.74377,2671.1,2670.6,1.82942002]
[1730277301042,3.74398,2671.0,2670.6,1.82942002]
[1730277301262,0.7615,2671.2,2670.6,5.64875633]
[1730277301428,7.48714,2671.3,2670.6,5.64875633]
[1730277301429,3.74357,2671.3,2670.9,0.7509]
[1730277301633,3.74331,2671.5,2670.9,6.54179734]
[1730277301947,3.74321,2671.5,2670.9,2.79776734]
[1730277302149,3.7436,2671.3,2670.9,6.54179734]
[1730277303338,3.7436,2671.3,2670.9,2.79776734]
[1730277304560,3.74364,2671.2,2670.9,2.79776734]
[1730277304758,2.90098973,2671.2,2670.9,2.79776734]
[1730277305063,3.74366,2671.2,2670.9,2.79776734]
[1730277305222,3.7435,2671.3,2670.9,2.79776734]
[1730277307075,7.48684,2671.4,2670.9,2.79776734]
[1730277307373,3.74341,2671.4,2671.1,0.7879]
[1730277308577,7.48685,2671.4,2671.1,0.7879]
[1730277308872,3.74341,2671.4,2671.1,0.7879]
[1730277309246,3.74356,2671.3,2671.1,0.7879]
[1730277310477,3.74349,2671.3,2671.1,0.7879]
[1730277311028,3.74363,2671.2,2671.1,0.7879]
[1730277311245,3.74351,2671.3,2670.8,0.768]
[1730277311246,3.74391,2671.0,2670.8,0.768]
[1730277311577,3.74384,2671.1,2670.8,0.768]
[1730277311737,3.74393,2671.0,2670.8,0.768]
[1730277312068,3.74405,2670.9,2670.8,0.768]
[1730277312272,3.74405,2670.9,2670.7,0.39000455]
[1730277312478,3.74419,2670.8,2670.7,0.39000455]
[1730277312634,3.74419,2670.8,2670.2,0.42964986]
[1730277312635,3.74475,2670.4,2670.3,0.7714]
[1730277312839,3.74485,2670.4,2670.2,0.05524986]
[1730277313345,3.74464,2670.5,2670.2,0.05524986]
[1730277314894,0.7568,2670.6,2670.2,0.05524986]
[1730277314895,3.74478,2670.4,2670.2,0.05524986]
[1730277315878,7.48962,2670.4,2670.2,0.05524986]
[1730277316080,3.74478,2670.4,2670.2,0.05524986]
[1730277316693,3.74489,2670.3,2670.2,0.05524986]
[1730277319906,3.74489,2670.3,2670.2,1.5073929]
[1730277320263,3.74478,2670.4,2670.2,1.5073929]
[1730277320699,7.48961,2670.4,2670.2,1.5073929]
[1730277321005,3.74489,2670.3,2670.2,1.45214304]
[1730277321591,4.50137,2670.6,2670.2,1.45214304]
[1730277321791,3.74461,2670.5,2670.2,1.45214304]
[1730277321976,3.74478,2670.4,2670.2,1.45214304]
[1730277322510,3.74478,2670.4,2670.1,0.04083121]
[1730277322676,3.74478,2670.4,2670.2,1.45214304]
[1730277323014,3.74461,2670.5,2670.2,1.45214304]
[1730277323178,3.74464,2670.5,2670.2,1.45214304]
[1730277323381,4.50135,2670.6,2670.2,1.45214304]
[1730277323707,3.74424,2670.8,2670.4,1.45214304]
[1730277323894,3.74435,2670.7,2670.4,1.45214304]
[1730277326821,3.74415,2670.9,2670.4,1.45214304]
[1730277326986,3.74415,2670.9,2670.6,1.45214304]
[1730277327396,3.74395,2671.0,2670.6,1.45214304]
[1730277327904,5.90387,2671.1,2670.8,1.45214304]
[1730277329120,3.74392,2671.0,2670.8,1.45214304]
[1730277331329,2.16,2671.1,2670.8,1.45214304]
[1730277331483,5.90389,2671.1,2670.8,1.45214304]
[1730277331685,2.16,2671.1,2670.6,2.42231134]
[1730277331982,2.16,2671.1,2670.7,0.31826113]
[1730277332187,3.74394,2671.0,2670.7,0.31826113]
[1730277334785,10.67579,2671.2,2670.9,0.7991]
[1730277334786,9.91363,2671.2,2670.9,0.7991]
[1730277336120,3.74377,2671.1,2670.8,1.45214304]
[1730277336330,3.74377,2671.1,2670.8,2.08411046]
[1730277338322,6.17,2671.2,2670.8,2.08411046]
[1730277338637,6.17,2671.2,2670.8,5.82823046]
[1730277338951,3.7433,2671.5,2671.0,5.19605304]
[1730277339107,3.7433,2671.5,2671.1,0.5992953]
[1730277340196,7.48661,2671.5,2671.1,0.5992953]
[1730277340429,3.7433,2671.5,2671.2,0.7916]
[1730277341520,0.8222,2671.8,2671.2,0.7916]
[1730277341724,3.743,2671.7,2671.2,2.24374304]
[1730277341927,3.743,2671.7,2671.3,0.65867083]
[1730277343234,13.65546,2671.9,2671.4,0.8272]
[1730277343411,3.74281,2671.8,2671.4,0.8272]
[1730277343608,3.74281,2671.8,2671.5,0.52293508]
[1730277343824,3.74279,2671.8,2671.5,0.52293508]
[1730277344136,3.74279,2671.8,2671.4,0.8272]
[1730277344509,7.48571,2671.8,2671.4,0.8272]
[1730277346342,7.4857,2671.8,2671.4,0.8272]
[1730277346638,3.74279,2671.8,2671.4,0.8272]
[1730277347002,3.74294,2671.7,2671.4,0.8272]
[1730277349451,3.74279,2671.8,2671.4,0.8272]
[1730277349653,3.74279,2671.8,2671.5,0.52293608]
[1730277350438,7.48568,2671.8,2671.5,0.52293608]
[1730277350646,3.74279,2671.8,2671.5,0.52293608]
[1730277352154,4.95,2671.9,2671.6,1.45214304]
[1730277352468,4.95,2672.3,2672.0,3.74238]
[1730277352646,5.7739,2672.7,2672.2,1.45214304]
[1730277352833,5.7739,2672.7,2672.3,0.7844]
[1730277352834,8.69161,2672.7,2672.3,0.7844]
[1730277353473,3.74168,2672.6,2672.3,0.7844]
[1730277353632,8.69161,2672.7,2672.3,0.7844]
[1730277353828,4.95,2672.7,2672.3,0.7844]
[1730277354074,8.69161,2672.7,2672.3,0.7844]
[1730277354254,12.43322,2672.7,2672.3,0.7844]
[1730277354566,3.74176,2672.6,2672.3,0.7844]
[1730277355067,8.69161,2672.7,2672.3,0.7844]
[1730277355404,8.69161,2672.7,2672.3,1.3822823]
[1730277355574,3.74167,2672.6,2672.3,1.3822823]
[1730277355937,8.69161,2672.7,2672.3,1.3822823]
[1730277356738,4.95,2672.7,2672.3,5.1243623]
[1730277357867,4.95,2672.7,2672.3,1.3822823]
[1730277358369,3.7417,2672.6,2672.3,0.7844]
[1730277360347,4.95,2672.7,2672.3,5.97849304]
[1730277360552,14.86117,2673.0,2672.5,4.50734]
[1730277360988,11.12,2673.0,2672.6,3.74156]
[1730277361153,6.17,2673.0,2672.8,3.74136]
[1730277361351,6.17,2673.0,2672.9,0.5956003]
[1730277361767,3.7407,2673.3,2672.9,0.5956003]
[1730277362601,3.7407,2673.3,2672.7,5.95613304]
[1730277362918,3.74106,2673.1,2672.7,2.21464304]
[1730277363089,4.5203,2673.0,2672.5,0.7907]
[1730277363388,3.0,2673.5,2672.7,3.74143]
[1730277363389,3.74093,2673.2,2672.7,3.74143]
[1730277363549,3.74093,2673.2,2672.8,0.7662]
[1730277364193,3.74093,2673.2,2672.8,2.21834304]
[1730277364360,4.51461,2673.4,2672.8,2.21834304]
[1730277364560,4.95,2673.4,2673.0,1.45214304]
[1730277364758,4.95,2673.4,2673.3,3.74069]
[1730277364974,4.95,2673.4,2673.3,7.52299]
[1730277365180,3.73952,2674.2,2673.7,0.7823]
[1730277365512,3.73952,2674.2,2673.8,1.45214304]
[1730277365804,5.7795,2674.4,2673.8,1.45214304]
[1730277365805,3.83968,2674.1,2673.8,1.45214304]
[1730277366157,0.1,2674.1,2673.7,0.7823]
[1730277366355,3.73994,2673.9,2673.7,0.7823]
[1730277366808,3.73971,2674.0,2673.7,0.7823]
[1730277367162,3.73999,2673.8,2673.4,0.777]
[1730277367368,3.73999,2673.8,2673.5,0.3777]
[1730277367605,3.73999,2673.8,2673.4,0.777]
[1730277367606,3.74027,2673.6,2673.4,0.777]
[1730277367792,4.5646,2673.9,2673.4,0.777]